Cogmind - Beta 11.1 @@@ ROGUE MODE // 2022.05.19 @ 19:02:55 Player: Candesce Result: Self-destructed Performance ------------- Evolutions (2) 1000 Regions Visited (5) 1000 Robots Destroyed (21) 105 Value Destroyed (519) 519 Prototype IDs (25) 500 Alien Tech Used (0) 0 Bonus (340) 340 TOTAL SCORE: 3464 Bonus ------- Follower Combat Kills 40 Aligned with FarCom 300 Cogmind --------- Core Integrity 511/550 Matter 272/300 Energy 16/100 System Corruption 1% Temperature Cool (0) Movement Walking (120) Location -8/Materials Parts ------- > --- POWER (1) -------- (None) > --- PROPULSION (3) --- Carbon-fiber Leg Carbon-fiber Leg > --- UTILITY (5) ------ Improved Heat Sink Medium Storage Unit Improved Trap Extractor (1/6 Dirty Bomb) > --- WEAPON (2) ------- Gatling Laser Gauss Rifle > --- INVENTORY (10) --- Gatling Laser Gatling Laser Beamcaster Rocket Launcher Rocket Launcher Remote Datajack Makeshift Axe Deploy-a-Sentry Deploy-a-Sentry Deploy-a-Sentry Peak State ------------ > --- POWER ------------ Light Ion Engine > --- PROPULSION ------- Aluminum Leg Carbon-fiber Leg Carbon-fiber Leg > --- UTILITY ---------- Improved Heat Sink Medium Storage Unit Heavy Armor Plating Improved Trap Extractor > --- WEAPON ----------- Beamcaster Gauss Rifle > --- INVENTORY -------- Gatling Laser Gatling Laser Gatling Laser Rocket Launcher Rocket Launcher Remote Datajack Makeshift Axe Deploy-a-Sentry Deploy-a-Sentry Deploy-a-Sentry [Rating: 35] Favorites ----------- Power Light Ion Engine Engine Light Ion Engine Propulsion Aluminum Leg Leg Aluminum Leg Wheel Compact Wheel Utility Small Storage Unit Device Sensor Array Storage Small Storage Unit Protection Heavy Armor Plating Weapon Beam Rifle Energy Gun Beam Rifle Ballistic Gun Assault Rifle Launcher Rocket Launcher Impact Weapon Maul Slashing Weapon Makeshift Axe Build | -11 -10 -10 -10 -9 -8 ------- Run | Scr Mat Min Exi Min Mat Slots Evolved 4 | . . . . . 4 Power . | . . . . . . Propulsion 1 | . . . . . 1 Utility 3 | . . . . . 3 Weapon . | . . . . . . Parts Attached 53 | 7 23 5 1 2 15 Power 4 | 1 2 . . . 1 Engine 4 | 1 2 . . . 1 Core . | . . . . . . Reactor . | . . . . . . Propulsion 8 | 1 3 1 . . 3 Treads . | . . . . . . Leg 7 | 1 2 1 . . 3 Wheel 1 | . 1 . . . . Hover . | . . . . . . Flight . | . . . . . . Utility 8 | 2 2 . . 1 3 Device 5 | 1 2 . . 1 1 Storage 2 | 1 . . . . 1 Processor . | . . . . . . Hackware . | . . . . . . Protection 1 | . . . . . 1 Artifact . | . . . . . . Weapon 33 | 3 16 4 1 1 8 Energy Gun 15 | 2 7 3 . 1 2 Energy Cannon . | . . . . . . Ballistic Gun 5 | 1 1 . . . 3 Ballistic Cannon . | . . . . . . Launcher 4 | . 1 1 1 . 1 Special Weapon . | . . . . . . Impact Weapon 7 | . 7 . . . . Slashing Weapon 2 | . . . . . 2 Piercing Weapon . | . . . . . . Special Melee Weapon . | . . . . . . Unidentified Prototypes . | . . . . . . Parts Lost 4 | . 1 . . . 3 Power 1 | . . . . . 1 Propulsion 2 | . 1 . . . 1 Utility 1 | . . . . . 1 Weapon . | . . . . . . Highest Loss Streak 2 | . 1 . . . 2 To Critical Strikes . | . . . . . . Average Slot Usage (%) 97 | . 97 100 100 100 82 Engine 13 | . 13 14 14 14 8 Leg 26 | . 23 28 28 28 21 Device 13 | . 14 14 14 14 12 Storage 13 | . 14 14 14 14 13 Protection 1 | . . . . . 7 Energy Gun 17 | . 12 23 28 14 9 Ballistic Gun 3 | . 14 . . . 8 Launcher 5 | . . 4 . 14 . Naked Turns . | . . . . . . Heaviest Build 45 | 13 15 16 16 19 45 Greatest Support 40 | 10 20 20 20 20 40 Greatest Overweight (x) 4 | 1 4 . . . 2 Average Overweight (x) . | . . . . . . Largest Inventory Capacity 10 | 8 8 8 8 8 10 Average Capacity 8 | 7 8 8 8 8 9 Most Carried 10 | 4 8 8 8 8 10 Average Carried 7 | 2 7 7 7 7 9 Final Capacity 10 | 8 8 8 8 8 10 Final Carried 10 | 3 8 8 8 8 10 Class Distribution -------------------- 75% | Mutant 18% | Skirmisher 5% | Scavenger-Mutant Dominant Class ---------------- Mutant | -10/Materials Mutant | -10/Mines Mutant | -10/Exiles Skirmisher | -9/Mines Mutant | -8/Materials Resources | -11 -10 -10 -10 -9 -8 ----------- Run | Scr Mat Min Exi Min Mat Matter Collected 849 | 288 209 128 . 55 169 Remotely . | . . . . . . Salvage Created 620 | 119 180 92 . . 229 Parts 47 | 6 16 8 . . 17 Haulers Intercepted . | . . . . . . Recyclers Shooed . | . . . . . . Parts Field Recycled . | . . . . . . Retrieved Matter . | . . . . . . Parts Self-Destructed . | . . . . . . Prevented . | . . . . . . Kills | -11 -10 -10 -10 -9 -8 ------- Run | Scr Mat Min Exi Min Mat Combat Hostiles Destroyed 17 | . 8 3 . . 6 Guns 15 | . 8 1 . . 6 AOE 2 | . . 2 . . . Classes Destroyed 7 | 2 2 . . . 3 Builder 2 | . . . . . 2 Tunneler 1 | 1 . . . . . Recycler 1 | 1 . . . . . Swarmer 8 | . 6 . . . 2 Grunt 7 | . 2 3 . . 2 Hunter 1 | . . . . . 1 Heavy 1 | . . . . . 1 Best Kill Streak 8 | 1 8 2 . . 4 Combat Bots Only 8 | . 8 2 . . 3 Max Kills in Single Turn 2 | 1 2 2 . . 2 Gunslinging 1 | . 1 . . . 1 Exploded 2 | . . 2 . . . Melee . | . . . . . . Uniques/NPCs Destroyed . | . . . . . . Combat | -11 -10 -10 -10 -9 -8 -------- Run | Scr Mat Min Exi Min Mat Damage Taken 797 | . 188 . . . 609 Core 108 | . 69 . . . 39 Absorbed by Shields . | . . . . . . Core Remaining (%) 86 | 100 . . . 72 . Volleys Fired 40 | 6 16 2 . . 16 Largest 2 | 2 2 2 . . 2 Hottest 112 | 70 76 112 . . 108 Shots Fired 79 | 12 32 3 . . 32 Gun 78 | 12 32 2 . . 32 Cannon . | . . . . . . Launcher 1 | . . 1 . . . Special . | . . . . . . Kinetic 38 | 6 16 . . . 16 Thermal 40 | 6 16 2 . . 16 Explosive 1 | . . 1 . . . Electromagnetic . | . . . . . . Robot Hit Streak 7 | 3 5 1 . . 7 Robot Miss Streak 7 | 5 3 . . . 7 Penetration Max 1 | . . . . . 1 Secondary Targets 5 | . 3 . . . 2 Max Gunslinging Chain 1 | . 1 . . . 1 Shots Hit Robots 50 | 5 20 1 . . 24 Core Hits 35 | 3 11 3 . . 18 Critical Kills . | . . . . . . Critical Parts Destroyed . | . . . . . . Critical Strikes . | . . . . . . Melee Attacks 10 | . 8 . . . 2 Impact 8 | . 8 . . . . Slashing 2 | . . . . . 2 Piercing . | . . . . . . Sneak Attacks . | . . . . . . Combat Hostiles . | . . . . . . Follow-up Attacks . | . . . . . . Damage Inflicted 988 | 69 272 120 . . 527 Guns 872 | 69 262 15 . . 526 Cannons . | . . . . . . Explosions 105 | . . 105 . . . Melee . | . . . . . . Ramming 11 | . 10 . . . 1 Kinetic 410 | 32 134 . . . 244 Thermal 462 | 37 128 15 . . 282 Explosive 105 | . . 105 . . . Electromagnetic . | . . . . . . Impact . | . . . . . . Slashing . | . . . . . . Piercing . | . . . . . . Highest Corruption 1 | . . . . . 1 Average Corruption 1 | . . . . . 1 Corruption Purged . | . . . . . . Corruption Blocked . | . . . . . . Overload Shots . | . . . . . . Overflow Damage . | . . . . . . Projectiles . | . . . . . . Explosions . | . . . . . . Melee . | . . . . . . Knockbacks . | . . . . . . Impact . | . . . . . . Kinetic . | . . . . . . Secondary . | . . . . . . Self-Inflicted Damage . | . . . . . . Shots . | . . . . . . Rammed . | . . . . . . Targets Rammed 2 | . 1 . . . 1 Kicked 2 | . 1 . . . 1 Crushed . | . . . . . . Highest Temperature 273 | 18 273 51 . . 181 Average Temperature 74 | 9 124 30 . . 44 Received Heat Transfer 255 | . 48 . . . 207 Siege Activations . | . . . . . . Robots Corrupted . | . . . . . . Combat Hostiles . | . . . . . . Parts Fried . | . . . . . . Impact Corruptions . | . . . . . . Robots Melted . | . . . . . . Combat Hostiles . | . . . . . . Parts Melted 1 | . 1 . . . . Heat Transferred 1131 | 111 333 37 . . 650 Parts Sabotaged . | . . . . . . Parts Stolen . | . . . . . . Parts Stripped . | . . . . . . Power Chain Reactions . | . . . . . . Missiles Intercepted . | . . . . . . Alert | -11 -10 -10 -10 -9 -8 ------- Run | Scr Mat Min Exi Min Mat Peak Influence 272 | 10 272 150 . . 151 Initial 61 | . 6 61 . . . Average 51 | 3 124 58 . . 70 Maximum Alert Level 1 | . 1 . . . . Low Security (%) 95 | 100 75 100 . 100 100 Level 1 4 | . 24 . . . . Level 2 . | . . . . . . Level 3 . | . . . . . . Level 4 . | . . . . . . Level 5 . | . . . . . . High Security . | . . . . . . Max Security . | . . . . . . Squads Dispatched 7 | . 1 . . . 6 Investigation . | . . . . . . Extermination . | . . . . . . Reinforcement 7 | . 1 . . . 6 Assault . | . . . . . . Garrison . | . . . . . . Intercept . | . . . . . . Searches Triggered . | . . . . . . Construction Impeded 1 | . . . . . 1 Haulers Reinforced . | . . . . . . Active Scanning Responses . | . . . . . . Cargo Convoy Interrupts . | . . . . . . Stealth | -11 -10 -10 -10 -9 -8 --------- Run | Scr Mat Min Exi Min Mat Distress Signals 2 | . 1 1 . . . Communications Jammed . | . . . . . . Distress Signals . | . . . . . . Times Spotted 44 | . 17 . . . 27 Peak Tracking Total 10 | . 9 . . . 10 Tactical Retreats 2 | . 1 . . . 1 Traps | -11 -10 -10 -10 -9 -8 ------- Run | Scr Mat Min Exi Min Mat Traps Triggered 1 | . 1 . . . . Indirectly . | . . . . . . Trap Hack Attempts . | . . . . . . Triggered . | . . . . . . Disarmed . | . . . . . . Reprogrammed . | . . . . . . Reused 2 | . . . . . 2 Traps Extracted 5 | . . . . 5 . Installed 3 | . . . . . 3 Triggered 2 | . . . . . 2 Most Traps Carried 5 | . . . . 5 5 Machines | -11 -10 -10 -10 -9 -8 ---------- Run | Scr Mat Min Exi Min Mat Machines Disabled 1 | . . 1 . . . Max in Single Turn 1 | . . 1 . . . Machines Sabotaged . | . . . . . . Garrisons Compromised . | . . . . . . Overloaded Fab Kills . | . . . . . . Hacking | -11 -10 -10 -10 -9 -8 --------- Run | Scr Mat Min Exi Min Mat Machines Accessed 10 | . 6 . 2 2 . Terminals 7 | . 6 . . 1 . Fabricators . | . . . . . . Repair Stations . | . . . . . . Recycling Units . | . . . . . . Scanalyzers . | . . . . . . Garrison Access . | . . . . . . Total Hacks 28 | . 22 . 2 4 . Successful 14 | . 10 . 2 2 . Failed 14 | . 12 . . 2 . Catastrophic 1 | . 1 . . . . Database Lockouts . | . . . . . . Manual 17 | . 13 . 1 3 . Terminals 25 | . 22 . . 3 . Fabricators . | . . . . . . Repair Stations . | . . . . . . Recycling Units . | . . . . . . Scanalyzers . | . . . . . . Garrison Access . | . . . . . . Terminal Hacks 10 | . 6 . 2 2 . Record 2 | . 1 . 1 . . Part Schematic 1 | . 1 . . . . Robot Analysis 3 | . 2 . . 1 . Prototype ID Bank 1 | . 1 . . . . Open Door 1 | . . . . 1 . Terminal Index 1 | . 1 . . . . EX-Prototype ID Bank 1 | . . . 1 . . Fabricator Hacks . | . . . . . . Repair Station Hacks . | . . . . . . Recycling Unit Hacks . | . . . . . . Scanalyzer . | . . . . . . Garrison Access Hacks . | . . . . . . Unauthorized Hacks 4 | . 4 . . . . Terminals 4 | . 4 . . . . Assimilate 3 | . 3 . . . . Operators 1 | . 1 . . . . Fabricators . | . . . . . . Repair Stations . | . . . . . . Recycling Units . | . . . . . . Scanalyzers . | . . . . . . Garrison Access . | . . . . . . Data Cores Recovered . | . . . . . . Used . | . . . . . . Hacking Detections 7 | . 6 . . 1 . Full Trace Events . | . . . . . . Feedback Events . | . . . . . . Feedback Blocked . | . . . . . . Robot Schematics Acquired . | . . . . . . Robots Built . | . . . . . . Authchips . | . . . . . . Time . | . . . . . . Total Robot Build Rating . | . . . . . . Part Schematics Acquired 1 | . 1 . . . . Parts Built . | . . . . . . Authchips . | . . . . . . Time . | . . . . . . Total Part Build Rating . | . . . . . . Parts Repaired . | . . . . . . Time . | . . . . . . Parts Recycled . | . . . . . . Recycled Matter . | . . . . . . Retrieved Matter . | . . . . . . Retrieved Components . | . . . . . . Parts Scanalyzed . | . . . . . . Part Schematics Acquired . | . . . . . . Parts Damaged . | . . . . . . Bothacking | -11 -10 -10 -10 -9 -8 ------------ Run | Scr Mat Min Exi Min Mat Used RIF Installer . | . . . . . . Robots Hacked . | . . . . . . Non-combat . | . . . . . . Combat . | . . . . . . Robot Hacks Applied . | . . . . . . Relay Couplers Released . | . . . . . . Fabnet Peak Effective % . | . . . . . . Robots Rewired . | . . . . . . Allies Hacked . | . . . . . . Hacks Repelled . | . . . . . . Allies | -11 -10 -10 -10 -9 -8 -------- Run | Scr Mat Min Exi Min Mat Total Allies 4 | . 2 . . 2 . Largest Group 4 | . 2 2 2 4 4 Highest-Rated Group 61 | . 20 20 20 61 61 Highest-Rated Ally 31 | . 10 10 10 31 31 Total Orders 8 | . . 3 . 4 1 STAY 5 | . . 2 . 2 1 FOLLOW 3 | . . 1 . 2 . Ally Attacks 5 | . . . . . 5 Total Damage 87 | . . . . . 87 Kills 2 | . . . . . 2 Allies Corrupted . | . . . . . . Allies Melted . | . . . . . . Intel | -11 -10 -10 -10 -9 -8 ------- Run | Scr Mat Min Exi Min Mat Robot Analysis Total 3 | . 2 . . 1 . Derelict Logs Recovered 3 | . . 2 . 1 . Drone Launches . | . . . . . . Drone Recoveries . | . . . . . . Exploration | -11 -10 -10 -10 -9 -8 ------------- Run | Scr Mat Min Exi Min Mat Turns Passed 4499 | 189 714 1103 682 1192 619 Spaces Moved 3107 | 85 422 819 561 957 263 Core 5 | 2 3 . . . . Treads . | . . . . . . Legs 3010 | 83 327 819 561 957 263 Wheels 92 | . 92 . . . . Hover . | . . . . . . Flight . | . . . . . . Fastest Speed 50 | 50 100 120 120 120 120 Average Speed 127 | 181 122 120 120 120 187 Slowest Speed 260 | 190 250 120 120 120 260 Overloaded Moves . | . . . . . . Propulsion Burnouts . | . . . . . . Robots Hopped . | . . . . . . Cave-ins Triggered . | . . . . . . Exploration Rate (%) 60 | 4 63 83 91 99 24 Regions Visited 5 Branch Regions 3 Pre-discovered Areas 2 | . . 1 1 . . Known Exits Taken . | . . . . . . Unknown Exits Taken 5 | 1 1 1 1 1 . Scrap Searched 4 | . . 1 . 3 . Spaces Dug 17 | . 8 8 . . 1 Terrain Destroyed 18 | . 8 8 . . 2 Melee 9 | . 8 . . . 1 Projectile 1 | . . . . . 1 AOE 8 | . . 8 . . . Terrain Rammed . | . . . . . . Walls Destroyed . | . . . . . . Machines Disabled . | . . . . . . Actions | -11 -10 -10 -10 -9 -8 --------- Run | Scr Mat Min Exi Min Mat Total 3528 | 105 566 936 571 1002 348 Wait 265 | 3 82 106 2 34 38 Move 3102 | 84 421 818 560 956 263 Hop . | . . . . . . Pick Up 28 | 4 9 2 4 5 4 Fast Attach 13 | 6 4 . . . 3 Attach 2 | . 1 . . . 1 Detach . | . . . . . . Swap 38 | 1 18 5 1 2 11 Drop 25 | 1 6 3 4 5 6 Fire 40 | 6 16 2 . . 16 Melee 10 | . 8 . . . 2 Ram . | . . . . . . Kick 2 | . 1 . . . 1 Crush . | . . . . . . Escape Stasis . | . . . . . . Rewire . | . . . . . . Trap 3 | . . . . . 3 Miscellaneous . | . . . . . . Route ------- -11/Scrapyard -10/Materials (discovered 4 exits: [*Mat x2] / [*Min x2]) -10/Mines (discovered 2 exits: [*Mat] / *Exi) -10/Exiles -9/Mines (discovered 2 exits: [*Mat x2]) -8/Materials (discovered 2 exits: Fac / [*Sto]) History --------- Turn | Location | Event 7 | -11/Scrapyard | Discovered new exit (range 16) 190 | -11/Scrapyard | Entered Materials 302 | -10/Materials | Discovered new exit (range 14) 306 | -10/Materials | Build established: Mutant 434 | -10/Materials | Destroyed 8 combat bots 558 | -10/Materials | Discovered new exit (range 16) 599 | -10/Materials | Discovered new exit (range 8) 808 | -10/Materials | Discovered new exit (range 15) 904 | -10/Materials | Entered Mines 904 | -10/Mines | Accompanied by 2 allies 952 | -10/Mines | Learned location of Storage (-8) 967 | -10/Mines | A weapon hastily lodged in a ceiling crevice suddenly fell to the ground 989 | -10/Mines | Assembled infested the area 1358 | -10/Mines | Deemed a non-threat by the Exiles lab entrance 1358 | -10/Mines | Discovered new exit (range 5) 1485 | -10/Mines | Discovered new exit (range 14) 1624 | -10/Mines | Learned Materials trap positions 2007 | -10/Mines | Entered Exiles 2007 | -10/Exiles | Accompanied by 2 allies 2038 | -10/Exiles | Met 8R-AWN 2058 | -10/Exiles | Met EX-HEX 2121 | -10/Exiles | Met EX-DEC 2145 | -10/Exiles | Learned location of Zion (-6) 2187 | -10/Exiles | Discovered new exit (range 14) 2314 | -10/Exiles | Visited The Gauntlet 2460 | -10/Exiles | Met EX-BIN 2475 | -10/Exiles | Aligned with FarCom system 2476 | -10/Exiles | Given EX-Vault access code 2503 | -10/Exiles | Opened EX-Vault 2514 | -10/Exiles | Found Deploy-a-Sentry 2517 | -10/Exiles | Found Deploy-a-Sentry 2519 | -10/Exiles | Found Deploy-a-Sentry 2545 | -10/Exiles | Warned to stay clear of 0b10 Research branches 2689 | -10/Exiles | Left Exiles lab with Deploy-a-Sentry 2689 | -10/Exiles | Entered Mines 2689 | -9/Mines | Accompanied by 2 allies 2807 | -9/Mines | Discovered new exit (range 4) 2832 | -9/Mines | Received a Rocket Launcher from a helpful Derelict 2988 | -9/Mines | Build established: Skirmisher 3046 | -9/Mines | Learned location of 1 exit from Materials 3105 | -9/Mines | Discovered new exit (range 12) 3377 | -9/Mines | Met a Derelict who couldn't figure out how to use a Trap Extractor 3802 | -9/Mines | Build established: Mutant 3881 | -9/Mines | Entered Materials 3881 | -8/Materials | Accompanied by 4 allies 3881 | -8/Materials | Evolved 4 slots: Propulsion x1, Utility x3 3882 | -8/Materials | Identified exit to Factory 3883 | -8/Materials | Loaded intel: 14 trap records 3886 | -8/Materials | Led the pair of lost Derelicts to an unsafe place 4442 | -8/Materials | Discovered new exit (range 10) 4500 | -8/Materials | Self-destructed Last Messages --------------- 04481_ G-47 Trooper destroyed. 04481_ Switching to secondary target: G-47 Trooper. 04482_ ALERT: Construction progress impeded, dispatching reinforcements to local area. 04482_ K-01 Serf collects debris. 04483_ U-05 Engineer builds a Wall. 04486_ Acquired 42 matter. 04486_ K-01 Serf collects debris. 04487_ ALERT: Hostiles spotted, dispatching reinforcements to Terminal M007. 04487_ Acquired 25 matter. 04488_ K-01 Serf collects debris. 04488_ Kicked U-05 Engineer out of the way. 04489_ Slug penetrates Wall. 04491_ U-05 Engineer builds a Wall. 04492_ G-47 Trooper destroyed. 04492_ U-05 Engineer destroyed. 04494_ Slug penetrates Wall. 04494_ Hvy. Armor Plating destroyed. 04497_ Penetrated by Slug. 04498_ Aluminum Leg destroyed. Map ----- +----------------------------------------------------+ | ?????????????????????????????????????????????????? | | ?????????????????????????????????????????????????? | | ?????????????????????????????????????????????????? | | ?????????????????????????????????????????????????? | | ?????????????????????????????????????????????????? | | ?????????????????????????????????????????????????? | | ?????????????????????????????????????????????????? | | ?????????????????????????????????????????????????? | | ?????????????????????????????????????????????????? | | ?????????????????????????????????????????????????? | | ?????????????????????????????????????????????????? | | ?????????????????????????????????????????????????? | | ?????????????????????????????????????????????????? | | ?????????????????????????????######??????????????? | | ?????????????????????????????# #?????????????? | | ?????????????????????????????# ?? ???????????? | | ?????????????????????????????# ? ????????????? | | ?????????????????????????????# [ ?????????????? | | ?????????????????????????????? % ??????????????? | | ??????????????????????????????# #??????????????? | | ??????????????????????????????# #??????????????? | | ??????????????????^???????????# #????????####??? | | ??????????? #####+############ ###;### #??? | | ?????????? w a u g ! #??? | | ?????????? a !== *!g < #??? | | ?????????? @s %%% % g h #??? | | ?????????????????### ####s### ;;##### #??? | | ???????????????????????# | %*!![% #????????????? | | ???????????????????????# s[=%]*!* #????????????? | | ???????????????????????#s *%=%"%! #????????????? | | ?????????????????????? " [%== ###????????????? | | ????????????????????? " %[ #??????????????? | | ???????????????????? " " #####??????????? | | ???????????????????# "" " " !!#??????????? | | ???????????????????# " " !!#??????????? | | ???????????????????# " " ==#??????????? | | ???????????????????# " " x ==#??????????? | | ???????????????????# " " ]]#??????????? | | ???????????????????+ " " ]]#??????????? | | ???????????????????# # =# #####??????????? | | ???????????????????# ########x ######???? ????? | | ???????????????????# ???????# # #???? ????? | | ???????????????????? ???????# # #???? #???? | | ??????????????????????????????# # #???? #???? | | ????????????????????????####### # #???? #???? | | ????????????????????????# # # #???? #???? | | ????????????????????????# """ # # #???? #???? | | ????????????????????????# """ # # #???# #???? | | ????????????????????????# """ # # #???# #???? | | ????????????????????????# """ # # ##### ##??? | +----------------------------------------------------+ Best States ------------- Heat Dissipation 45 Energy Generation 10 Energy Capacity 125 Matter Stores 300 Matter Capacity 300 Sight Range 16 Robot Scan Range 14 Terrain Scan Range 16 Terrain Scan Density 10 Armor Coverage 600 Evasion (%) 55 Trap Extractor Capacity 6 Item Schematics ----------------- Hcp. Storage Unit | -10/Materials | Hacked Robot Schematics ------------------ None Fabricated ------------ Nothing Alien Tech Used ----------------- None Achievements -------------- None Challenges ------------ None Game ------ Seed RagnarokRagnarokMegatreads Manual? 0 Play Time 00:44:37 Cumulative 33.7 hours Start 2022.05.19 @ 13:00:23 End 2022.05.19 @ 19:02:55 Sessions 9 Manual Loads 0 Difficulty Rogue Special Mode None Game No. 108 Rogue 108 Adventurer 0 Explorer 0 Win Type - Total 1 Types 0/0/0/1/0/0/0/0/0 Lore% 53 Gallery% 59 Achievement% 44 Wizard Run 0 Options --------- ASCII 0 Keyboard 0 Movement Numpad Keybinds 0 Fullscreen 1 Font 14/SmallcapsGlow Map View 84x54 Tactical HUD 1 Map Filters NONE Filters NONE Steam 1 RUN: 183c28a5-03f5-4933-9fe9-c969e196bc90